bitfinex/quotes_SOLUSD_20240930
["timestamp","ask_amount","ask_price","bid_price","bid_amount"]
[1727690490892,2.0,154.68,154.63,24.027864]
[1727690491061,6.3842,154.73,154.67,26.28088157]
[1727690492181,6.462,154.76,154.67,26.28088157]
[1727690492664,22.2537,154.77,154.67,26.28088157]
[1727690492859,22.2537,154.77,154.71,26.28088157]
[1727690492860,6.5941,154.77,154.71,26.28088157]
[1727690494181,6.0045,154.81,154.72,24.027864]
[1727690494390,12.464,154.81,154.72,24.027864]
[1727690494589,6.0045,154.81,154.72,24.027864]
[1727690496291,6.4586,154.84,154.75,0.25098]
[1727690496469,22.5485,154.85,154.75,24.027864]
[1727690496999,6.4591,154.83,154.75,24.027864]
[1727690497286,6.4591,154.83,154.75,20.25098]
[1727690497485,6.4591,154.83,154.75,0.25098]
[1727690497697,29.0063,154.85,154.75,0.25098]
[1727690497865,6.4583,154.84,154.75,0.25098]
[1727690498395,6.4587,154.83,154.75,0.25098]
[1727690498584,29.0067,154.85,154.76,26.28088157]
[1727690498787,29.0067,154.85,154.77,0.25098]
[1727690498975,22.5485,154.85,154.77,0.25098]
[1727690499173,29.0063,154.85,154.77,24.027864]
[1727690499492,6.3808,154.85,154.77,24.027864]
[1727690500779,6.4571,154.87,154.79,26.28088157]
[1727690501179,22.7897,154.89,154.8,24.027864]
[1727690501374,29.2459,154.89,154.82,24.027864]
[1727690501678,21.9613,154.93,154.83,0.25098]
[1727690501995,6.4567,154.88,154.81,0.12549]
[1727690502193,6.4562,154.89,154.81,0.25098]
[1727690502393,21.9613,154.93,154.81,0.25098]
[1727690502591,6.4561,154.89,154.81,0.25098]
[1727690502974,21.9613,154.93,154.81,0.25098]
[1727690503169,21.9613,154.93,154.79,26.28088157]
[1727690503378,21.9613,154.93,154.8,0.25098]
[1727690503592,6.4558,154.9,154.8,21.0413153]
[1727690504170,6.4554,154.91,154.8,21.0413153]
[1727690504370,21.9613,154.93,154.82,44.027864]
[1727690504585,6.4551,154.92,154.82,44.027864]
[1727690504783,21.9613,154.93,154.82,44.027864]
[1727690504993,6.4555,154.91,154.82,44.027864]
[1727690505199,6.4557,154.9,154.82,43.902374]
[1727690505496,6.4551,154.92,154.85,0.12549]
[1727690505700,6.3165,154.93,154.84,23.902374]
[1727690505869,6.4553,154.91,154.85,0.12549]
[1727690506069,6.3165,154.93,154.85,0.12549]
[1727690506277,6.4557,154.91,154.85,0.12549]
[1727690506571,6.4549,154.92,154.84,0.12549]
[1727690506775,6.4549,154.92,154.84,0.25098]
[1727690507174,6.3165,154.93,154.84,0.25098]
[1727690507500,6.4553,154.91,154.84,0.25098]
[1727690507801,6.3165,154.93,154.84,0.25098]
[1727690507974,6.455,154.92,154.84,26.53186157]
[1727690508178,6.3165,154.93,154.84,26.53186157]
[1727690508378,6.4553,154.91,154.84,26.53186157]
[1727690508582,6.4565,154.89,154.81,26.28088157]
[1727690508801,6.4566,154.88,154.81,26.28088157]
[1727690509101,6.3165,154.93,154.81,26.28088157]
[1727690509479,6.4557,154.9,154.81,26.28088157]
[1727690510191,6.4557,154.9,154.82,24.027864]
[1727690510404,36.1374,154.92,154.8,0.7903353]
[1727690510806,6.4583,154.84,154.8,0.7903353]
[1727690511000,16.1407,154.89,154.8,0.7903353]
[1727690511001,6.4592,154.82,154.8,0.7903353]
[1727690511301,6.33782,154.83,154.8,0.7903353]
[1727690511475,31.5544,154.89,154.8,0.7903353]
[1727690511675,6.4587,154.83,154.8,0.7903353]
[1727690511916,31.5544,154.89,154.8,0.7903353]
[1727690512803,15.4137,154.89,154.8,0.7903353]
[1727690513004,6.4569,154.88,154.81,1.29160532]
[1727690513178,6.4574,154.87,154.8,0.7903353]
[1727690513499,6.4574,154.86,154.8,0.7903353]
[1727690513895,20.0,154.92,154.81,0.12549]
[1727690514074,16.1394,154.9,154.8,0.7903353]
[1727690514278,6.4574,154.86,154.8,0.7903353]
[1727690514797,6.4571,154.87,154.81,0.12549]
[1727690515295,6.4571,154.87,154.8,0.7903353]
[1727690515781,20.0,154.92,154.8,0.7903353]
[1727690515782,6.4575,154.86,154.8,0.7903353]
[1727690516405,36.1383,154.92,154.8,0.7903353]
[1727690516406,6.4584,154.84,154.8,0.7903353]
[1727690517102,16.1444,154.86,154.8,0.7903353]
[1727690517290,6.4587,154.83,154.8,0.7903353]
[1727690517606,48.4234,154.89,154.8,0.7903353]
[1727690518211,6.4586,154.84,154.8,0.7903353]
[1727690519516,6.4578,154.85,154.8,0.7903353]
[1727690519710,6.4573,154.87,154.81,0.12549]
[1727690519922,6.4566,154.88,154.81,0.12549]
[1727690520098,20.0,154.92,154.81,50.30874557]
[1727690520292,22.4538,154.93,154.81,50.30874557]
[1727690520510,6.4557,154.9,154.82,1.2914074]
[1727690520718,6.3165,154.93,154.83,0.12549]
[1727690521017,6.4549,154.92,154.85,24.027864]
[1727690521400,6.4545,154.93,154.85,24.027864]
[1727690521832,22.3709,154.97,154.85,0.12549]
[1727690521833,6.4554,154.91,154.85,0.12549]
[1727690522518,6.4553,154.91,154.85,0.12549]
[1727690523021,6.4552,154.92,154.84,24.027864]
[1727690523315,6.4557,154.91,154.84,0.12549]
[1727690523527,16.1351,154.95,154.83,22.8297]
[1727690523688,6.457,154.87,154.83,22.8297]
[1727690524095,6.4575,154.86,154.8,0.7903353]
[1727690524712,16.1392,154.91,154.8,0.7903353]
[1727690524913,20.0,154.9,154.8,0.7903353]
[1727690525118,6.4579,154.85,154.8,0.7903353]
[1727690525324,6.457,154.87,154.81,1.29167494]
[1727690525509,16.1392,154.91,154.81,1.29167494]
[1727690525510,6.4566,154.88,154.81,1.29167494]
[1727690525709,6.4566,154.88,154.8,0.7903353]
[1727690526027,6.4574,154.86,154.8,0.7903353]
[1727690526406,16.1382,154.92,154.81,0.12549]
[1727690526804,1.1224844,154.94,154.81,27.82328006]
[1727690527023,6.4561,154.9,154.81,26.53186157]
[1727690527322,6.4554,154.91,154.85,0.25098]
[1727690527620,6.4549,154.92,154.85,0.25098]
[1727690528307,6.4554,154.91,154.85,0.12549]
[1727690528517,6.4557,154.9,154.8,47.07121687]
[1727690528717,6.4557,154.9,154.82,0.25098]
[1727690529531,6.4562,154.89,154.82,0.25098]
[1727690530327,16.137,154.93,154.82,0.25098]
[1727690530823,16.137,154.93,154.82,0.12549]
[1727690531028,6.4571,154.87,154.8,20.7903353]
[1727690531330,36.1353,154.94,154.81,1.29152995]
[1727690531509,36.1353,154.94,154.8,47.07121687]
[1727690532020,6.4557,154.9,154.81,1.29132145]
[1727690532213,36.1353,154.94,154.82,24.027864]
[1727690532521,36.1353,154.94,154.84,0.25098]
[1727690532696,12.95889723,154.97,154.86,0.12549]
[1727690532697,20.0,154.96,154.86,0.12549]
[1727690533024,6.455,154.92,154.86,0.12549]
[1727690533599,20.0,154.96,154.86,0.12549]
[1727690533795,6.4553,154.91,154.86,0.12549]
[1727690534029,6.4553,154.91,154.86,0.9158253]
[1727690535432,6.4549,154.92,154.87,23.902374]
[1727690535603,22.3703,154.97,154.87,23.902374]
[1727690535808,22.3703,154.97,154.88,0.12549]
[1727690536108,6.4549,154.93,154.88,0.12549]
[1727690537009,6.4549,154.92,154.86,0.7903353]
[1727690537223,6.4544,154.94,154.87,40.118264]
[1727690537408,6.4546,154.93,154.87,40.118264]
[1727690537908,6.454,154.95,154.89,24.027864]
[1727690538111,6.4542,154.94,154.89,24.027864]
[1727690538434,6.4547,154.93,154.89,0.12549]
[1727690539422,6.4547,154.93,154.87,22.1367]
[1727690539627,6.4547,154.93,154.88,0.25098]
[1727690540206,6.4547,154.93,154.88,24.027864]
[1727690541037,16.1333,154.96,154.88,0.12549]
[1727690541240,20.0,154.95,154.87,26.27596683]
[1727690541416,6.4557,154.9,154.87,22.1367]
[1727690541622,20.0,154.95,154.87,22.1367]
[1727690541623,6.4554,154.91,154.87,22.1367]
[1727690542235,6.4557,154.9,154.87,22.1367]
[1727690542821,6.4566,154.89,154.86,0.7903353]
[1727690543032,6.4566,154.88,154.86,0.7903353]
[1727690543735,16.1359,154.94,154.86,0.7903353]
[1727690543934,6.4566,154.88,154.86,0.7903353]
[1727690544318,6.457,154.87,154.86,0.7903353]
[1727690545335,16.138,154.92,154.86,0.7903353]
[1727690545549,6.4566,154.88,154.86,0.7903353]
[1727690545836,6.4562,154.89,154.86,0.7903353]
[1727690546136,16.1343,154.95,154.86,0.7903353]
[1727690546435,6.4553,154.91,154.86,0.7903353]
[1727690546632,6.4549,154.92,154.87,0.25098]
[1727690546835,6.4541,154.95,154.87,0.25098]
[1727690547015,6.4548,154.93,154.87,0.25098]
[1727690547433,6.4542,154.94,154.87,0.25098]
[1727690547613,6.4542,154.94,154.87,24.027864]
[1727690548033,6.4545,154.93,154.87,24.027864]
[1727690548210,6.455,154.92,154.87,0.12549]
[1727690548613,6.4544,154.94,154.87,24.027864]
[1727690548839,6.4549,154.93,154.87,0.25098]
[1727690549028,6.4549,154.93,154.87,0.7903353]
[1727690549340,6.4549,154.93,154.88,0.12549]
[1727690549515,6.4541,154.94,154.88,0.25098]
[1727690553623,6.4549,154.92,154.88,0.12549]
[1727690556642,6.4546,154.93,154.88,0.12549]
[1727690558245,6.4546,154.93,154.88,0.25098]
[1727690558425,6.4557,154.9,154.87,0.7903353]
[1727690558740,6.4554,154.91,154.87,0.7903353]
[1727690559128,6.455,154.92,154.87,0.7903353]
[1727690560130,6.4566,154.88,154.87,0.7903353]
[1727690562520,26.4566,154.88,154.87,0.7903353]
[1727690563424,6.4557,154.9,154.87,0.7903353]
[1727690563639,6.4558,154.9,154.87,0.7903353]
[1727690563826,6.4553,154.91,154.87,0.7903353]
[1727690566543,16.1341,154.96,154.87,0.7903353]
[1727690566544,23.776884,154.95,154.87,0.7903353]
[1727690566853,6.4562,154.89,154.87,0.7903353]
[1727690567232,23.776884,154.95,154.87,0.7903353]
[1727690567560,6.4557,154.91,154.87,0.7903353]
[1727690569058,6.4549,154.92,154.87,0.7903353]
[1727690569860,6.4555,154.91,154.87,0.7903353]
[1727690570780,16.1341,154.96,154.87,0.7903353]
[1727690571060,6.4553,154.91,154.87,0.7903353]
[1727690571559,7.57501565,154.98,154.91,22.0182]
[1727690571741,6.452,154.99,154.93,0.12549]
[1727690571944,0.8063382,155.02,154.93,0.25098]
[1727690572442,0.8063382,155.02,154.95,0.25098]
[1727690572635,0.8063382,155.02,154.92,60.17933396]
[1727690572834,6.4519,155.0,154.93,0.25098]
[1727690573038,0.8063382,155.02,154.93,0.25098]
[1727690573333,6.4513,155.01,154.93,24.027864]
[1727690573538,6.4513,155.01,154.94,16.40244996]
[1727690573851,6.4513,155.01,154.95,0.25098]
[1727690574360,0.8063382,155.02,154.95,0.25098]
[1727690574564,0.8063382,155.02,154.94,16.40244996]
[1727690574771,6.4529,154.97,154.92,16.40244996]
[1727690574976,16.9332382,155.02,154.92,16.40244996]
[1727690575674,6.4533,154.96,154.92,16.40244996]
[1727690576042,6.4533,154.96,154.91,22.0182]
[1727690576244,6.4537,154.95,154.91,22.0182]
[1727690576460,6.4543,154.94,154.91,22.0182]
[1727690576642,16.1299,155.0,154.91,22.0182]
[1727690576847,6.4537,154.95,154.91,22.0182]
[1727690577258,16.1299,155.0,154.91,22.0182]
[1727690577467,6.4536,154.96,154.91,22.0182]
[1727690577764,6.4529,154.97,154.91,22.0182]
[1727690577943,6.4534,154.96,154.91,22.0182]
[1727690579270,6.4529,154.97,154.91,24.09939294]
[1727690579461,0.8063382,155.02,154.92,16.52793996]
[1727690579462,6.4525,154.98,154.92,16.52793996]
[1727690579963,6.4519,155.0,154.92,16.52793996]
[1727690580168,6.4519,155.0,154.93,0.12549]
[1727690580384,7.2574382,155.02,154.95,0.25098]
[1727690580550,6.4513,155.01,154.95,0.25098]
[1727690581179,7.2571382,155.02,154.97,0.12549]
[1727690582446,6.4512,155.01,154.95,0.12549]
[1727690582645,6.4519,155.0,154.93,20.25098]
[1727690583073,0.8063382,155.02,154.93,20.25098]
[1727690583246,6.4512,155.01,154.95,0.25098]
[1727690583448,6.4512,155.01,154.93,0.12549]
[1727690583666,6.4512,155.01,154.94,0.12549]
[1727690584382,6.4525,154.98,154.93,0.12549]
[1727690584564,0.8063382,155.02,154.92,0.12549]
[1727690584885,6.4528,154.97,154.92,0.12549]
[1727690585252,6.4532,154.96,154.91,22.8085353]
[1727690585578,6.4528,154.98,154.91,22.8085353]
[1727690586267,6.4529,154.97,154.91,22.8085353]
[1727690586485,15.9808382,155.02,154.91,16.3934353]
[1727690586784,6.4549,154.92,154.91,0.7903353]
[1727690588652,6.4546,154.93,154.91,0.7903353]
[1727690588989,6.4549,154.92,154.91,0.7903353]
[1727690591963,26.4549,154.92,154.91,0.7903353]
[1727690592164,50.231784,154.92,154.91,0.7903353]
[1727690592366,26.4549,154.92,154.91,0.7903353]
[1727690592563,6.4549,154.92,154.91,0.7903353]
[1727690593756,50.231784,154.92,154.91,3.53e-05]
[1727690594067,50.231784,154.92,154.8,6.2636]
[1727690594068,16.1401,154.9,154.8,6.2636]
[1727690594377,44.027864,154.92,154.8,6.2636]
[1727690594378,6.4586,154.84,154.8,6.2636]
[1727690594582,6.4588,154.83,154.8,6.2636]
[1727690594887,16.1426,154.87,154.8,6.2636]
[1727690594888,6.4583,154.84,154.8,6.2636]
[1727690595181,6.4578,154.85,154.8,6.2636]
[1727690595373,16.1394,154.91,154.8,7.55545563]
[1727690595566,6.4574,154.86,154.8,7.55545563]
[1727690596078,6.4574,154.86,154.8,6.2636]
[1727690596664,6.4574,154.86,154.81,0.12549]
[1727690596876,6.4588,154.83,154.8,6.2636]
[1727690597088,6.4591,154.82,154.8,6.2636]
[1727690597284,6.4595,154.81,154.8,6.2636]
[1727690597592,6.4597,154.81,154.79,15.0155]
[1727690597762,6.4595,154.81,154.79,15.0155]
[1727690597963,6.4591,154.83,154.79,15.0155]
[1727690598379,6.4592,154.82,154.79,15.0155]
[1727690599170,48.4234,154.89,154.73,26.2021878]
[1727690599171,44.027864,154.88,154.74,15.3234]
[1727690599404,6.4604,154.79,154.75,30.0]
[1727690599575,6.4599,154.8,154.75,30.0]
[1727690600173,6.4594,154.82,154.75,30.0]
[1727690600501,32.2819,154.89,154.78,6.4606]
[1727690600502,6.4587,154.83,154.78,6.4606]
[1727690600668,16.1417,154.88,154.79,1.2919021]
[1727690600872,6.4582,154.85,154.8,6.4597]
[1727690601085,6.4582,154.85,154.81,16.9337309]
[1727690601295,6.4582,154.85,154.81,15.642]
[1727690601496,6.4574,154.86,154.81,16.93375386]
[1727690601794,6.4574,154.86,154.81,15.642]
[1727690602397,6.457,154.87,154.81,15.642]
[1727690602697,6.4576,154.86,154.81,15.642]
[1727690603272,6.4569,154.88,154.81,15.642]
[1727690603471,6.4562,154.89,154.83,0.12549]
[1727690603672,6.4568,154.88,154.83,0.12549]
[1727690604077,6.4568,154.88,154.82,0.25098]
[1727690604373,6.4562,154.89,154.82,0.25098]
[1727690604570,6.4558,154.9,154.82,24.027864]
[1727690604801,7.5775533,154.92,154.82,24.027864]
[1727690605009,6.4555,154.91,154.82,24.027864]
[1727690605301,6.4548,154.93,154.84,0.12549]
[1727690605492,6.4548,154.93,154.87,16.1665]
[1727690605878,16.1312,154.98,154.87,16.1665]
[1727690605879,6.4549,154.92,154.87,16.1665]
[1727690606986,6.4554,154.91,154.87,16.1665]
[1727690607386,23.776884,154.97,154.87,16.1665]
[1727690607589,6.4549,154.92,154.87,16.1665]
[1727690608700,6.4558,154.9,154.87,16.1665]
[1727690608907,6.4563,154.89,154.87,16.1665]
[1727690609405,23.776884,154.98,154.87,16.1665]
[1727690609406,6.4566,154.88,154.87,16.1665]
[1727690609606,6.4573,154.87,154.83,21.9183]
[1727690609780,16.1375,154.92,154.83,21.9183]
[1727690609986,6.4575,154.86,154.83,21.9183]
[1727690610895,6.4579,154.85,154.83,21.9183]
[1727690611093,16.1406,154.89,154.79,22.6086]
[1727690611406,23.776884,154.88,154.79,22.6086]
[1727690611707,6.4591,154.82,154.79,22.6086]
[1727690612201,6.4587,154.83,154.79,22.6086]
[1727690612409,6.4583,154.84,154.8,1.29182625]
[1727690612611,6.4587,154.83,154.79,22.6086]
[1727690614007,16.1374,154.92,154.82,0.12549]
[1727690614193,6.4573,154.87,154.81,0.12549]
[1727690614692,6.4576,154.86,154.8,0.25098]
[1727690616820,16.1404,154.9,154.8,0.25098]
[1727690616987,6.4578,154.85,154.8,0.25098]
[1727690617196,6.4582,154.84,154.8,0.12549]
[1727690617811,6.4587,154.83,154.79,22.6086]
[1727690618585,23.776884,154.91,154.79,22.6086]
[1727690618787,6.4607,154.79,154.75,46.4985]
[1727690618987,6.4604,154.79,154.75,46.4985]
[1727690619588,6.4599,154.8,154.76,1.292082]
[1727690620402,6.4604,154.79,154.75,16.4985]
[1727690620679,6.4604,154.79,154.76,30.0]
[1727690621489,16.1454,154.85,154.77,0.12549]
[1727690621885,16.1454,154.85,154.76,30.0]
[1727690622310,6.46,154.8,154.76,30.0]
[1727690622608,6.4596,154.81,154.77,0.12549]
[1727690622995,16.1454,154.85,154.77,0.12549]
[1727690623194,6.46,154.8,154.77,0.12549]
[1727690623386,16.1454,154.85,154.77,0.12549]
[1727690623592,32.2817,154.89,154.77,1.54294619]
[1727690623803,16.1417,154.88,154.77,1.54294619]
[1727690624006,6.4583,154.84,154.78,23.776884]
[1727690624220,32.274,154.93,154.79,1.54266277]
[1727690624388,6.4574,154.86,154.82,16.6122]
[1727690624589,6.4575,154.86,154.82,16.6122]
[1727690625311,16.1387,154.91,154.82,16.6122]
[1727690625312,6.4578,154.85,154.82,16.6122]
[1727690625484,6.4582,154.84,154.82,16.6122]
[1727690625683,16.1387,154.91,154.82,16.6122]
[1727690625906,6.4579,154.85,154.82,16.6122]
[1727690627623,6.4574,154.86,154.82,16.6122]
[1727690627994,6.4573,154.87,154.82,16.6122]
[1727690628202,16.1387,154.91,154.82,16.6122]
[1727690628417,6.4574,154.86,154.82,16.6122]
[1727690628798,6.457,154.88,154.83,0.12549]
[1727690629203,6.457,154.87,154.83,0.12549]
[1727690630517,6.4578,154.86,154.82,16.6122]
[1727690630703,6.4573,154.87,154.82,16.6122]
[1727690630896,7.49299678,154.94,154.82,16.6122]
[1727690630897,7.49299678,154.94,154.83,0.25098]
[1727690631103,1.12239678,154.94,154.86,6.257]
[1727690631296,6.4545,154.94,154.88,15.586]
[1727690631616,17.25140561,155.0,154.89,0.25098]
[1727690631913,16.1325,154.97,154.89,0.12549]
[1727690632506,6.4544,154.94,154.89,0.25098]
[1727690634401,17.25120561,155.0,154.91,0.25098]
[1727690634601,6.4529,154.97,154.91,0.25098]
[1727690634814,6.4524,154.98,154.91,0.25098]
[1727690635317,0.8063382,155.02,154.91,0.25098]
[1727690635498,6.4529,154.97,154.91,0.25098]
[1727690636017,6.4539,154.95,154.91,0.25098]
[1727690636317,16.1298,155.0,154.91,0.25098]
[1727690636318,6.4533,154.96,154.91,0.25098]
[1727690636894,6.4537,154.95,154.9,0.25098]
[1727690637100,16.1298,155.0,154.89,0.12549]
[1727690637298,6.4545,154.93,154.88,15.586]
[1727690637523,6.4541,154.94,154.88,15.586]
[1727690638334,6.4537,154.95,154.88,15.586]
[1727690638704,6.4537,154.95,154.9,0.25098]
[1727690639105,6.4537,154.95,154.92,0.12549]
[1727690639304,6.4537,154.95,154.9,0.25098]
[1727690639510,16.1298,155.0,154.9,0.25098]
[1727690640003,6.4532,154.97,154.9,0.25098]
[1727690640625,0.8063382,155.02,154.9,20.25098]
[1727690640922,6.4525,154.98,154.92,0.25098]
[1727690641421,6.4529,154.97,154.92,0.25098]
[1727690641812,0.8063382,155.02,154.91,0.25098]
[1727690641813,6.4533,154.96,154.91,0.25098]
[1727690643919,6.454,154.95,154.91,0.25098]
[1727690644123,0.8063382,155.02,154.91,0.25098]
[1727690644124,0.8063382,155.02,154.91,0.12549]
[1727690644305,6.4544,154.94,154.9,0.25098]
[1727690645420,16.1312,154.98,154.9,24.027864]
[1727690645628,0.8063382,155.02,154.9,24.027864]
[1727690645808,16.1281,155.01,154.92,24.027864]
[1727690646003,6.4527,154.98,154.92,24.027864]
[1727690646404,0.8063382,155.02,154.94,24.027864]
[1727690646605,6.452,154.99,154.94,24.027864]
[1727690646906,6.4517,155.0,154.95,1.29030489]
[1727690647113,0.8063382,155.02,154.96,0.25098]
[1727690647924,6.4516,155.0,154.95,0.25098]
[1727690648516,6.4524,154.98,154.94,0.12549]
[1727690648717,6.4524,154.98,154.94,0.25098]
[1727690648923,6.4524,154.98,154.94,0.12549]
[1727690649727,6.4521,154.99,154.94,23.902374]
[1727690649925,6.4516,155.0,154.96,0.12549]
[1727690650431,0.8063382,155.02,154.94,0.12549]
[1727690650432,16.9339382,155.02,154.94,0.12549]
[1727690650638,6.4529,154.97,154.94,0.12549]
[1727690650931,6.4529,154.97,154.93,21.9623]
[1727690652338,6.4525,154.98,154.94,0.25098]
[1727690653709,0.8063382,155.02,154.94,24.027864]
[1727690653915,6.452,154.99,154.94,24.027864]
[1727690654514,0.8063382,155.02,154.94,24.027864]
[1727690654851,6.4513,155.01,154.94,40.41466291]
[1727690655338,6.452,154.99,154.94,20.25098]
[1727690656014,0.8063382,155.02,154.94,0.25098]
[1727690656418,0.8063382,155.02,154.94,24.027864]
[1727690656729,6.4516,155.0,154.94,24.027864]
[1727690657531,6.4528,154.97,154.93,21.9623]
[1727690657932,0.8063382,155.02,154.93,21.9623]
[1727690658133,6.4516,155.0,154.93,21.9623]
[1727690658448,6.4516,155.0,154.93,38.34909891]
[1727690658821,6.4516,155.0,154.94,24.027864]
[1727690659823,6.452,154.99,154.94,0.25098]
[1727690660636,0.8063382,155.02,154.94,0.25098]
[1727690660854,6.4521,154.99,154.94,24.027864]
[1727690661529,0.8063382,155.02,154.94,24.027864]
[1727690661730,6.4517,155.0,154.94,24.027864]
[1727690662450,0.8063382,155.02,154.94,24.027864]
[1727690662748,0.8063382,155.02,154.96,0.12549]
[1727690662957,0.8063382,155.02,154.99,15.8139]
[1727690663129,0.8063382,155.02,155.0,1.54092966]
[1727690663855,0.8063382,155.02,155.01,6.1811]
[1727690664027,0.8063382,155.02,155.01,66.59576291]
[1727690666555,6.5009,155.14,155.02,44.027864]
[1727690666861,6.5009,155.14,155.04,24.027864]
[1727690667159,6.4471,155.11,155.04,24.027864]
[1727690667332,6.4471,155.11,155.06,0.25098]
[1727690667654,6.4471,155.11,155.07,1.28944409]
[1727690668160,6.4465,155.13,155.08,0.25098]
[1727690668451,6.4465,155.13,155.1,0.12549]
[1727690668627,6.4465,155.13,155.11,1.28923217]
[1727690668834,6.4458,155.14,155.09,0.12549]
[1727690669134,0.8063382,155.17,155.11,0.12549]
[1727690669439,0.8063382,155.17,155.12,23.902374]
[1727690669750,0.8063382,155.17,155.13,0.12549]
[1727690669950,0.8063382,155.17,155.13,15.37829]
[1727690670342,0.8063382,155.17,155.14,0.12549]
[1727690671450,0.8063382,155.17,155.15,0.12549]
[1727690671826,0.8063382,155.17,155.16,0.12549]
[1727690673344,0.8063382,155.17,155.16,44.027864]
[1727690674951,0.8063382,155.17,155.16,20.25098]
[1727690675873,0.8063382,155.17,155.16,44.027864]
[1727690678133,0.8063382,155.17,155.16,45.31611238]
[1727690678328,6.4412,155.25,155.17,23.902374]
[1727690678528,22.52621396,155.29,155.19,0.12549]
[1727690678743,22.52621396,155.29,155.15,32.49419242]
[1727690678944,32.2055,155.26,155.16,20.0]
[1727690679145,6.4428,155.22,155.16,20.0]
[1727690679838,6.444,155.19,155.13,15.2528]
[1727690680163,6.4441,155.18,155.13,15.2528]
[1727690680742,6.4447,155.17,155.13,15.2528]
[1727690681256,6.4441,155.18,155.13,15.2528]
[1727690681455,6.4441,155.18,155.14,20.0]
[1727690681760,6.4435,155.2,155.14,20.0]
[1727690681935,6.4435,155.2,155.15,1.28880555]
[1727690682334,6.4435,155.2,155.16,0.25098]
[1727690682533,16.1041,155.24,155.17,1.28869005]
[1727690682747,6.4437,155.19,155.17,1.28869005]
[1727690682948,16.1041,155.24,155.18,0.25098]
[1727690683259,22.52621396,155.29,155.18,0.25098]
[1727690683260,6.4429,155.21,155.18,0.25098]
[1727690683464,6.4433,155.2,155.18,0.25098]
[1727690683761,6.4426,155.22,155.18,0.25098]
[1727690684355,6.443,155.21,155.18,0.25098]
[1727690685962,6.4424,155.22,155.18,0.25098]
[1727690686161,6.4428,155.21,155.18,0.25098]
[1727690687373,23.776884,155.26,155.17,0.12549]
[1727690687578,6.4444,155.18,155.13,15.2528]
[1727690687877,32.2048,155.26,155.13,15.2528]
[1727690687878,23.776884,155.25,155.13,15.2528]
[1727690688062,6.4445,155.18,155.13,15.2528]
[1727690688259,16.1082,155.21,155.13,15.2528]
[1727690688572,6.4454,155.15,155.08,16.6178]
[1727690689079,16.1105,155.18,155.08,16.6178]
[1727690689371,6.4461,155.14,155.08,16.6178]
[1727690689572,23.776884,155.17,155.08,16.6178]
[1727690689774,6.4478,155.1,155.08,16.6178]
[1727690689982,23.776884,155.17,155.04,16.6178]
[1727690690155,6.4474,155.1,155.06,30.0]
[1727690691061,6.448,155.09,155.04,16.6178]
[1727690691261,16.1152,155.14,155.03,6.3636]
[1727690691262,29.945884,155.13,155.03,6.3636]
[1727690691465,6.4482,155.09,155.0,15.4926]
[1727690691669,29.945884,155.13,155.02,30.0]
[1727690691855,6.4483,155.08,155.02,30.0]
[1727690692462,6.4477,155.1,155.02,30.0]
[1727690692665,6.4479,155.09,155.03,20.0]
[1727690692982,6.4479,155.09,155.05,0.25098]
[1727690693181,6.4473,155.11,155.06,1.2896324]
[1727690693478,6.4473,155.11,155.07,0.12549]
[1727690693857,6.4473,155.11,155.08,0.12549]
[1727690694179,6.4466,155.12,155.09,1.28943616]
[1727690694581,6.4466,155.12,155.08,0.25098]
[1727690694779,6.4466,155.12,155.07,0.25098]
[1727690694991,6.4466,155.12,155.08,1.28940921]
[1727690695274,6.4466,155.12,155.07,20.25098]
[1727690695275,6.4462,155.13,155.09,0.25098]
[1727690695654,6.4462,155.13,155.08,0.25098]
[1727690695856,6.4458,155.14,155.08,0.25098]